[Event "Early-Titled-Tuesday-Blitz-February-06-2024"]
[Site "Chess.com"]
[Date "2024.02.06"]
[Round "10"]
[White "iwanyu"]
[Black "FairChess_on_YouTube"]
[Result "1-0"]
[WhiteElo "2818"]
[BlackElo "3049"]
[TimeControl "180+1"]
[EndTime "9:56:26 PST"]
[Termination "iwanyu won on time"]

1. d4 {[%clk 0:02:59.3]} 1... Nf6 {[%clk 0:02:59.3]} 2. c4 {[%clk 0:02:58.3]}
2... e6 {[%clk 0:02:59.9]} 3. Nf3 {[%clk 0:02:58.3]} 3... b6 {[%clk 0:02:59.7]}
4. g3 {[%clk 0:02:58.9]} 4... Bb7 {[%clk 0:03:00.2]} 5. Bg2 {[%clk 0:02:58.9]}
5... g6 {[%clk 0:03:00]} 6. Nc3 {[%clk 0:02:59.4]} 6... Bg7 {[%clk 0:03:00.4]}
7. d5 {[%clk 0:03:00]} 7... O-O {[%clk 0:03:00.7]} 8. O-O {[%clk 0:02:59.9]}
8... a5 {[%clk 0:03:00.7]} 9. Nd4 {[%clk 0:02:59.8]} 9... exd5 {[%clk
0:02:58.6]} 10. cxd5 {[%clk 0:02:59.7]} 10... Na6 {[%clk 0:02:58.1]} 11. e4
{[%clk 0:03:00.3]} 11... Re8 {[%clk 0:02:57.1]} 12. Bf4 {[%clk 0:02:53.8]} 12...
Nc5 {[%clk 0:02:48]} 13. f3 {[%clk 0:02:44.5]} 13... Ba6 {[%clk 0:02:44.1]} 14.
Ndb5 {[%clk 0:02:36.2]} 14... c6 {[%clk 0:02:30.5]} 15. Nc7 {[%clk 0:02:35]}
15... Bxf1 {[%clk 0:02:28.6]} 16. Qxf1 {[%clk 0:02:33.1]} 16... cxd5 {[%clk
0:02:17.3]} 17. Nxe8 {[%clk 0:02:27.5]} 17... Qxe8 {[%clk 0:02:10.3]} 18. e5
{[%clk 0:02:24.4]} 18... Nh5 {[%clk 0:02:06.2]} 19. Nxd5 {[%clk 0:02:22.3]}
19... Nxf4 {[%clk 0:02:03.2]} 20. gxf4 {[%clk 0:02:21.7]} 20... Rd8 {[%clk
0:01:41.2]} 21. Re1 {[%clk 0:01:45.7]} 21... d6 {[%clk 0:01:35.5]} 22. exd6
{[%clk 0:01:41.5]} 22... Qd7 {[%clk 0:01:28.3]} 23. f5 {[%clk 0:01:03]} 23...
Qxd6 {[%clk 0:01:27]} 24. f4 {[%clk 0:01:03.4]} 24... gxf5 {[%clk 0:01:21.2]}
25. Ne7+ {[%clk 0:00:59]} 25... Kh8 {[%clk 0:01:21]} 26. Nxf5 {[%clk 0:00:58.8]}
26... Qf6 {[%clk 0:01:13.7]} 27. Re5 {[%clk 0:00:51.1]} 27... Nd3 {[%clk
0:01:02.6]} 28. Qxd3 {[%clk 0:00:49.9]} 28... Bf8 {[%clk 0:00:43.5]} 29. Qe2
{[%clk 0:00:45.4]} 29... Kg8 {[%clk 0:00:29.2]} 30. Bd5 {[%clk 0:00:37.4]} 30...
Bc5+ {[%clk 0:00:27.1]} 31. Kh1 {[%clk 0:00:36.5]} 31... Rf8 {[%clk 0:00:26.8]}
32. Qe4 {[%clk 0:00:13.2]} 32... Kh8 {[%clk 0:00:26.6]} 33. Re8 {[%clk
0:00:12.9]} 33... Qxb2 {[%clk 0:00:21.7]} 34. Rxf8+ {[%clk 0:00:12.8]} 34...
Bxf8 {[%clk 0:00:22.6]} 35. Bxf7 {[%clk 0:00:12.6]} 35... Qc1+ {[%clk 0:00:14]}
36. Kg2 {[%clk 0:00:12.7]} 36... Qd2+ {[%clk 0:00:14.7]} 37. Kh3 {[%clk
0:00:12.6]} 37... h5 {[%clk 0:00:06.7]} 38. Bg6 {[%clk 0:00:08.7]} 38... Qxa2
{[%clk 0:00:02.4]} 39. Qe5+ {[%clk 0:00:06.1]} 39... Kg8 {[%clk 0:00:03]} 40.
Ng3 {[%clk 0:00:04.5]} 40... Qc4 {[%clk 0:00:02.9]} 41. Qxh5 {[%clk 0:00:03.5]}
41... Qc7 {[%clk 0:00:03]} 42. Bf5 {[%clk 0:00:03]} 42... Qf7 {[%clk 0:00:02.6]}
43. Qxf7+ {[%clk 0:00:02.5]} 43... Kxf7 {[%clk 0:00:03.5]} 44. Bd3 {[%clk
0:00:03.1]} 44... Ke6 {[%clk 0:00:03.4]} 45. Bb5 {[%clk 0:00:02.8]} 45... Kd5
{[%clk 0:00:04]} 46. Kg4 {[%clk 0:00:03.2]} 46... Kc5 {[%clk 0:00:04.5]} 47. Be8
{[%clk 0:00:03.6]} 47... b5 {[%clk 0:00:04.5]} 48. Ne4+ {[%clk 0:00:04.5]} 48...
Kb4 {[%clk 0:00:04.6]} 49. Kf5 {[%clk 0:00:04.3]} 49... a4 {[%clk 0:00:05]} 50.
h4 {[%clk 0:00:04.9]} 50... a3 {[%clk 0:00:02.5]} 51. Bf7 {[%clk 0:00:05.1]}
51... Ka4 {[%clk 0:00:03.2]} 52. Nd2 {[%clk 0:00:03.1]} 52... Kb4 {[%clk
0:00:03.2]} 53. h5 {[%clk 0:00:03]} 53... Kc3 {[%clk 0:00:03.7]} 54. Nb1+ {[%clk
0:00:03.1]} 54... Kb2 {[%clk 0:00:02.9]} 55. Nxa3 {[%clk 0:00:03.8]} 55... Kxa3
{[%clk 0:00:03.2]} 56. Kg6 {[%clk 0:00:04.3]} 56... Kb4 {[%clk 0:00:02.3]} 57.
h6 {[%clk 0:00:04.7]} 57... Kc5 {[%clk 0:00:03]} 58. h7 {[%clk 0:00:04.9]} 58...
Kd6 {[%clk 0:00:03.3]} 59. h8=Q {[%clk 0:00:05.3]} 1-0

[Event "Early-Titled-Tuesday-Blitz-February-06-2024"]
[Site "Chess.com"]
[Date "2024.02.06"]
[Round "10"]
[White "Muracle"]
[Black "cristiano78"]
[Result "1-0"]
[WhiteElo "2479"]
[BlackElo "2288"]
[TimeControl "180+1"]
[EndTime "9:56:26 PST"]
[Termination "Muracle won by resignation"]

1. Nf3 {[%clk 0:02:56.8]} 1... Nf6 {[%clk 0:02:59.7]} 2. b3 {[%clk 0:02:57.4]}
2... g6 {[%clk 0:02:59.6]} 3. Bb2 {[%clk 0:02:58]} 3... Bg7 {[%clk 0:03:00.1]}
4. g3 {[%clk 0:02:58.2]} 4... O-O {[%clk 0:03:00.1]} 5. Bg2 {[%clk 0:02:58.7]}
5... d5 {[%clk 0:03:00.7]} 6. O-O {[%clk 0:02:59.3]} 6... c5 {[%clk 0:03:00.8]}
7. e3 {[%clk 0:02:59.9]} 7... Nc6 {[%clk 0:03:00.9]} 8. d3 {[%clk 0:03:00.6]}
8... h6 {[%clk 0:02:58.5]} 9. Nbd2 {[%clk 0:03:00.8]} 9... Be6 {[%clk
0:02:58.2]} 10. Qe2 {[%clk 0:03:01.2]} 10... Qd7 {[%clk 0:02:58.2]} 11. c4
{[%clk 0:03:00.5]} 11... dxc4 {[%clk 0:02:57.1]} 12. bxc4 {[%clk 0:02:46.1]}
12... Rad8 {[%clk 0:02:55.4]} 13. Nb3 {[%clk 0:02:45.5]} 13... b6 {[%clk
0:02:52.8]} 14. Rfd1 {[%clk 0:02:41.1]} 14... Ng4 {[%clk 0:02:39.8]} 15. Bxg7
{[%clk 0:02:38.3]} 15... Kxg7 {[%clk 0:02:40]} 16. Qb2+ {[%clk 0:02:38.4]} 16...
Nf6 {[%clk 0:02:38.2]} 17. Rd2 {[%clk 0:02:29.7]} 17... Bh3 {[%clk 0:02:33.9]}
18. Rad1 {[%clk 0:02:27.5]} 18... Bxg2 {[%clk 0:02:32.9]} 19. Kxg2 {[%clk
0:02:28.4]} 19... Qc7 {[%clk 0:02:30]} 20. Nc1 {[%clk 0:02:23.2]} 20... Rd7
{[%clk 0:02:20.9]} 21. Ne2 {[%clk 0:02:23]} 21... Rfd8 {[%clk 0:02:16.4]} 22.
Nf4 {[%clk 0:02:22]} 22... e5 {[%clk 0:02:13.6]} 23. Ne2 {[%clk 0:02:13.9]}
23... Qd6 {[%clk 0:02:06.5]} 24. Nc3 {[%clk 0:02:11.3]} 24... Qe6 {[%clk
0:02:04.1]} 25. h3 {[%clk 0:02:02]} 25... Nb4 {[%clk 0:01:55.1]} 26. Nd5 {[%clk
0:01:50.2]} 26... Nbxd5 {[%clk 0:01:52.4]} 27. cxd5 {[%clk 0:01:45.9]} 27...
Rxd5 {[%clk 0:01:51.7]} 28. e4 {[%clk 0:01:46.5]} 28... Rd4 {[%clk 0:01:46.8]}
29. Nxd4 {[%clk 0:01:46.2]} 29... exd4 {[%clk 0:01:46.5]} 30. Qb3 {[%clk
0:01:45.9]} 30... Qe7 {[%clk 0:01:37.9]} 31. f4 {[%clk 0:01:44.9]} 31... Nh5
{[%clk 0:01:30.7]} 32. Rf1 {[%clk 0:01:42.5]} 32... f5 {[%clk 0:01:27.9]} 33.
Re2 {[%clk 0:01:40.4]} 33... Nf6 {[%clk 0:01:23.1]} 34. Ree1 {[%clk 0:01:02]}
34... fxe4 {[%clk 0:01:16.8]} 35. dxe4 {[%clk 0:01:02.2]} 35... Qb7 {[%clk
0:00:54.9]} 36. Qf3 {[%clk 0:00:58.9]} 36... c4 {[%clk 0:00:49.5]} 37. f5 {[%clk
0:00:53.1]} 37... g5 {[%clk 0:00:31.3]} 38. e5 {[%clk 0:00:50]} 38... Qxf3+
{[%clk 0:00:29.7]} 39. Rxf3 {[%clk 0:00:38.5]} 39... Nd5 {[%clk 0:00:27.9]} 40.
f6+ {[%clk 0:00:35.8]} 40... Kg6 {[%clk 0:00:24.9]} 41. e6 {[%clk 0:00:28]}
41... Nxf6 {[%clk 0:00:22.3]} 42. e7 {[%clk 0:00:28.1]} 42... Re8 {[%clk
0:00:17.6]} 43. Re6 {[%clk 0:00:28.6]} 43... Kf7 {[%clk 0:00:17.1]} 44. Rfxf6+
{[%clk 0:00:28.2]} 44... Kg7 {[%clk 0:00:17.6]} 45. Rg6+ {[%clk 0:00:28.5]}
45... Kf7 {[%clk 0:00:17.6]} 46. Ref6+ {[%clk 0:00:24]} 46... Kxe7 {[%clk
0:00:16.9]} 47. Re6+ {[%clk 0:00:24.5]} 47... Kd7 {[%clk 0:00:17.4]} 48. Rxe8
{[%clk 0:00:24.9]} 48... Kxe8 {[%clk 0:00:18]} 49. Rd6 {[%clk 0:00:22.2]} 49...
d3 {[%clk 0:00:17.7]} 50. Kf3 {[%clk 0:00:19.2]} 50... b5 {[%clk 0:00:17.4]} 51.
Ke3 {[%clk 0:00:18.5]} 51... Ke7 {[%clk 0:00:17.7]} 52. Rxh6 {[%clk 0:00:18.6]}
52... b4 {[%clk 0:00:17]} 53. Ra6 {[%clk 0:00:18.5]} 53... Kd7 {[%clk 0:00:14]}
54. Rxa7+ {[%clk 0:00:19.4]} 54... Kc6 {[%clk 0:00:14.4]} 55. Rg7 {[%clk
0:00:18.8]} 55... Kb5 {[%clk 0:00:12.8]} 56. Rxg5+ {[%clk 0:00:19]} 56... Ka4
{[%clk 0:00:13.6]} 57. Rg4 {[%clk 0:00:18.5]} 57... c3 {[%clk 0:00:10.1]} 58.
Kxd3 {[%clk 0:00:18.5]} 58... Ka3 {[%clk 0:00:10.5]} 59. Kc2 {[%clk 0:00:17.4]}
59... Kxa2 {[%clk 0:00:08]} 60. Rxb4 {[%clk 0:00:16.8]} 1-0

[Event "Early-Titled-Tuesday-Blitz-February-06-2024"]
[Site "Chess.com"]
[Date "2024.02.06"]
[Round "10"]
[White "frequentblunders"]
[Black "Felix-Rose"]
[Result "0-1"]
[WhiteElo "2169"]
[BlackElo "2374"]
[TimeControl "180+1"]
[EndTime "9:56:29 PST"]
[Termination "Felix-Rose won on time"]

1. d3 {[%clk 0:03:00.1]} 1... d5 {[%clk 0:02:59.5]} 2. f4 {[%clk 0:03:00.3]}
2... Nf6 {[%clk 0:02:59.5]} 3. Nf3 {[%clk 0:03:00.3]} 3... g6 {[%clk 0:02:59.9]}
4. g3 {[%clk 0:03:00.6]} 4... Bg7 {[%clk 0:03:00.5]} 5. Bg2 {[%clk 0:03:01]}
5... O-O {[%clk 0:03:01.1]} 6. O-O {[%clk 0:03:01]} 6... Nc6 {[%clk 0:03:01.7]}
7. Nc3 {[%clk 0:03:01.6]} 7... Bg4 {[%clk 0:03:00.8]} 8. h3 {[%clk 0:03:00.4]}
8... Bxf3 {[%clk 0:03:00.9]} 9. Bxf3 {[%clk 0:03:01.3]} 9... e5 {[%clk
0:03:01.3]} 10. e4 {[%clk 0:03:01]} 10... exf4 {[%clk 0:02:53.6]} 11. Bxf4
{[%clk 0:02:59.3]} 11... dxe4 {[%clk 0:02:50.4]} 12. dxe4 {[%clk 0:03:00.2]}
12... Qd4+ {[%clk 0:02:47.4]} 13. Qxd4 {[%clk 0:02:58]} 13... Nxd4 {[%clk
0:02:48.3]} 14. e5 {[%clk 0:02:53.9]} 14... Nxf3+ {[%clk 0:02:38.8]} 15. Rxf3
{[%clk 0:02:54.8]} 15... Nh5 {[%clk 0:02:38.5]} 16. Re1 {[%clk 0:02:52.9]} 16...
c6 {[%clk 0:02:34]} 17. Ne4 {[%clk 0:02:42.8]} 17... Rad8 {[%clk 0:02:22.9]} 18.
Nd6 {[%clk 0:02:21.9]} 18... Nxf4 {[%clk 0:02:17.4]} 19. gxf4 {[%clk 0:02:15.3]}
19... b6 {[%clk 0:01:49]} 20. c4 {[%clk 0:02:03.2]} 20... g5 {[%clk 0:01:47.6]}
21. Nf5 {[%clk 0:01:12]} 21... gxf4 {[%clk 0:01:32.8]} 22. Rxf4 {[%clk
0:01:03.5]} 22... Kh8 {[%clk 0:01:32]} 23. Rg4 {[%clk 0:00:43]} 23... Rg8 {[%clk
0:01:27.8]} 24. Kh1 {[%clk 0:00:25.4]} 24... Rde8 {[%clk 0:00:50.9]} 25. Rge4
{[%clk 0:00:12.9]} 25... Bf8 {[%clk 0:00:47.1]} 26. h4 {[%clk 0:00:07.2]} 26...
Rg6 {[%clk 0:00:42.1]} 27. Kh2 {[%clk 0:00:05.7]} 27... Rge6 {[%clk 0:00:40.8]}
28. Kg3 {[%clk 0:00:05]} 28... f6 {[%clk 0:00:39.2]} 29. Kf4 {[%clk 0:00:02.4]}
29... fxe5+ {[%clk 0:00:31.2]} 30. Rxe5 {[%clk 0:00:03.3]} 30... Rxe5 {[%clk
0:00:30.9]} 31. Rxe5 {[%clk 0:00:04.2]} 31... Rd8 {[%clk 0:00:27.8]} 32. Re6
{[%clk 0:00:04.7]} 32... c5 {[%clk 0:00:26.2]} 33. Ke5 {[%clk 0:00:05]} 33...
Kg8 {[%clk 0:00:23.8]} 34. Kf6 {[%clk 0:00:05.3]} 34... Rd2 {[%clk 0:00:19.5]}
35. Rc6 {[%clk 0:00:05.4]} 35... Rxb2 {[%clk 0:00:16.4]} 36. Rc8 {[%clk
0:00:05.7]} 36... Rf2 {[%clk 0:00:16.6]} 37. Ra8 {[%clk 0:00:05.1]} 37... a5
{[%clk 0:00:12.2]} 38. Rb8 {[%clk 0:00:04.8]} 38... h5 {[%clk 0:00:10.1]} 39.
Kg6 {[%clk 0:00:04.8]} 39... Rg2+ {[%clk 0:00:10.2]} 40. Kxh5 {[%clk 0:00:05]}
40... Kf7 {[%clk 0:00:08.9]} 41. Rb7+ {[%clk 0:00:05.1]} 41... Kf6 {[%clk
0:00:08.5]} 42. Ne3 {[%clk 0:00:04.3]} 42... Re2 {[%clk 0:00:07]} 43. Rxb6+
{[%clk 0:00:04.6]} 43... Ke5 {[%clk 0:00:07.6]} 44. Ng4+ {[%clk 0:00:04.7]}
44... Kd4 {[%clk 0:00:08.3]} 45. Rf6 {[%clk 0:00:04.9]} 45... Be7 {[%clk
0:00:06.7]} 46. Rf4+ {[%clk 0:00:05.1]} 46... Kd3 {[%clk 0:00:06.6]} 47. Ne5+
{[%clk 0:00:04.3]} 47... Ke3 {[%clk 0:00:06.2]} 48. Nc6 {[%clk 0:00:03.1]} 48...
Kxf4 {[%clk 0:00:06.1]} 49. Kg6 {[%clk 0:00:01.2]} 49... Bxh4 {[%clk 0:00:06.2]}
0-1

[Event "Early-Titled-Tuesday-Blitz-February-06-2024"]
[Site "Chess.com"]
[Date "2024.02.06"]
[Round "10"]
[White "Timerkhanov"]
[Black "Szparu"]
[Result "1/2-1/2"]
[WhiteElo "2662"]
[BlackElo "2824"]
[TimeControl "180+1"]
[EndTime "9:56:32 PST"]
[Termination "Game drawn - insufficient material"]

1. d4 {[%clk 0:03:00.9]} 1... d5 {[%clk 0:02:58.3]} 2. Nf3 {[%clk 0:03:00.5]}
2... Nf6 {[%clk 0:02:58.1]} 3. g3 {[%clk 0:03:00.8]} 3... c5 {[%clk 0:02:58.1]}
4. Bg2 {[%clk 0:03:00.8]} 4... cxd4 {[%clk 0:02:58.8]} 5. Nxd4 {[%clk
0:03:00.5]} 5... e5 {[%clk 0:02:58.8]} 6. Nb3 {[%clk 0:03:00]} 6... h6 {[%clk
0:02:57.1]} 7. O-O {[%clk 0:02:57.7]} 7... Nc6 {[%clk 0:02:53.4]} 8. Nc3 {[%clk
0:02:56.4]} 8... Be6 {[%clk 0:02:50.4]} 9. f4 {[%clk 0:02:56.1]} 9... exf4
{[%clk 0:02:41.2]} 10. Bxf4 {[%clk 0:02:54.7]} 10... Be7 {[%clk 0:02:32.2]} 11.
e4 {[%clk 0:02:39.6]} 11... dxe4 {[%clk 0:02:27.7]} 12. Qxd8+ {[%clk 0:02:38.8]}
12... Rxd8 {[%clk 0:02:27.3]} 13. Nxe4 {[%clk 0:02:39.4]} 13... O-O {[%clk
0:02:22.7]} 14. Nec5 {[%clk 0:02:32.4]} 14... Bc8 {[%clk 0:02:15.5]} 15. Rfe1
{[%clk 0:02:30.4]} 15... Nd5 {[%clk 0:02:08.8]} 16. Bd2 {[%clk 0:02:09.3]} 16...
Bf6 {[%clk 0:02:08.6]} 17. c3 {[%clk 0:02:05.4]} 17... h5 {[%clk 0:02:01.9]} 18.
Rad1 {[%clk 0:02:04.4]} 18... h4 {[%clk 0:01:35.8]} 19. Bc1 {[%clk 0:02:00.3]}
19... Nb6 {[%clk 0:01:36.4]} 20. Bf4 {[%clk 0:01:58.1]} 20... hxg3 {[%clk
0:01:32.4]} 21. hxg3 {[%clk 0:01:57.9]} 21... Nc4 {[%clk 0:01:26.1]} 22. Rxd8
{[%clk 0:01:37.6]} 22... Rxd8 {[%clk 0:01:25.7]} 23. Re2 {[%clk 0:01:38.1]}
23... Rd1+ {[%clk 0:01:06.8]} 24. Kh2 {[%clk 0:01:35.8]} 24... N6e5 {[%clk
0:01:06.1]} 25. Bxb7 {[%clk 0:01:23.3]} 25... Bg4 {[%clk 0:01:02.6]} 26. Rf2
{[%clk 0:01:18.4]} 26... g5 {[%clk 0:00:27.5]} 27. Ne4 {[%clk 0:01:06.3]} 27...
gxf4 {[%clk 0:00:12.9]} 28. Nxf6+ {[%clk 0:01:05.3]} 28... Kg7 {[%clk
0:00:13.5]} 29. gxf4 {[%clk 0:00:58.3]} 29... Kxf6 {[%clk 0:00:09.2]} 30. fxe5+
{[%clk 0:00:58.1]} 30... Kxe5 {[%clk 0:00:10.1]} 31. Rxf7 {[%clk 0:00:47.9]}
31... Nxb2 {[%clk 0:00:10.4]} 32. Kg3 {[%clk 0:00:21.6]} 32... Be6 {[%clk
0:00:10.1]} 33. Rf2 {[%clk 0:00:21.7]} 33... Nd3 {[%clk 0:00:09.1]} 34. Re2+
{[%clk 0:00:22]} 34... Kf6 {[%clk 0:00:08.7]} 35. Nd4 {[%clk 0:00:21.3]} 35...
Bc4 {[%clk 0:00:05.8]} 36. Re3 {[%clk 0:00:15.9]} 36... Rg1+ {[%clk 0:00:06.2]}
37. Kh2 {[%clk 0:00:14.3]} 37... Rg7 {[%clk 0:00:06.9]} 38. Be4 {[%clk
0:00:12.1]} 38... Nf4 {[%clk 0:00:04]} 39. Nf3 {[%clk 0:00:07.7]} 39... Rg8
{[%clk 0:00:03.3]} 40. Nd4 {[%clk 0:00:03.6]} 40... Rh8+ {[%clk 0:00:03.4]} 41.
Kg3 {[%clk 0:00:03.7]} 41... Nh5+ {[%clk 0:00:03.2]} 42. Kf2 {[%clk 0:00:03.6]}
42... Kg5 {[%clk 0:00:03.1]} 43. Bf3 {[%clk 0:00:04.1]} 43... Nf4 {[%clk
0:00:03]} 44. Re5+ {[%clk 0:00:04.5]} 44... Kg6 {[%clk 0:00:03.5]} 45. Ra5
{[%clk 0:00:04.6]} 45... Nd3+ {[%clk 0:00:03.2]} 46. Ke3 {[%clk 0:00:05]} 46...
Re8+ {[%clk 0:00:01.9]} 47. Be4+ {[%clk 0:00:04.9]} 47... Kf6 {[%clk 0:00:02.4]}
48. Kf3 {[%clk 0:00:03.5]} 48... Ne5+ {[%clk 0:00:02.4]} 49. Kf4 {[%clk
0:00:03.7]} 49... a6 {[%clk 0:00:01.9]} 50. Bd5 {[%clk 0:00:03.6]} 50... Nd3+
{[%clk 0:00:01.9]} 51. Kg3 {[%clk 0:00:03.5]} 51... Re3+ {[%clk 0:00:01.7]} 52.
Kg4 {[%clk 0:00:02.7]} 52... Ne5+ {[%clk 0:00:01.6]} 53. Kf4 {[%clk 0:00:02.8]}
53... Rxc3 {[%clk 0:00:02.2]} 54. Bxc4 {[%clk 0:00:01.8]} 54... Nxc4 {[%clk
0:00:02.7]} 55. Rxa6+ {[%clk 0:00:02.2]} 55... Ke7 {[%clk 0:00:03.6]} 56. Nc6+
{[%clk 0:00:02.4]} 56... Kd7 {[%clk 0:00:03.8]} 57. Ne5+ {[%clk 0:00:02.7]}
57... Nxe5 {[%clk 0:00:04.4]} 58. Kxe5 {[%clk 0:00:03.6]} 58... Kc7 {[%clk
0:00:04.7]} 59. Kd5 {[%clk 0:00:03.9]} 59... Kb7 {[%clk 0:00:05.2]} 60. Ra4
{[%clk 0:00:04.5]} 60... Rc8 {[%clk 0:00:04.8]} 61. Kd4 {[%clk 0:00:05]} 61...
Kb6 {[%clk 0:00:05.1]} 62. Kd3 {[%clk 0:00:05.2]} 62... Kb5 {[%clk 0:00:05.5]}
63. Rd4 {[%clk 0:00:05.6]} 63... Ra8 {[%clk 0:00:05.3]} 64. a4+ {[%clk
0:00:06.2]} 64... Rxa4 {[%clk 0:00:05.5]} 65. Rxa4 {[%clk 0:00:06.6]} 65... Kxa4
{[%clk 0:00:06.4]} 1/2-1/2

[Event "Early-Titled-Tuesday-Blitz-February-06-2024"]
[Site "Chess.com"]
[Date "2024.02.06"]
[Round "10"]
[White "wonderfultime"]
[Black "AnishOnYoutube"]
[Result "1/2-1/2"]
[WhiteElo "3058"]
[BlackElo "3019"]
[TimeControl "180+1"]
[EndTime "9:56:37 PST"]
[Termination "Game drawn by agreement"]

1. d4 {[%clk 0:02:57.9]} 1... Nf6 {[%clk 0:03:00.3]} 2. Nf3 {[%clk 0:02:57.1]}
2... d5 {[%clk 0:03:00.5]} 3. Bf4 {[%clk 0:02:57.3]} 3... Bf5 {[%clk 0:03:01]}
4. c4 {[%clk 0:02:55.9]} 4... e6 {[%clk 0:03:00.1]} 5. Qb3 {[%clk 0:02:55.5]}
5... dxc4 {[%clk 0:02:58.2]} 6. Qxc4 {[%clk 0:02:54.4]} 6... Nc6 {[%clk
0:02:39.5]} 7. e3 {[%clk 0:02:50.3]} 7... Bd6 {[%clk 0:02:30]} 8. Bg3 {[%clk
0:02:43.8]} 8... Nb4 {[%clk 0:02:22.8]} 9. Na3 {[%clk 0:02:43.7]} 9... O-O
{[%clk 0:02:22.9]} 10. Be2 {[%clk 0:02:43.9]} 10... a5 {[%clk 0:02:14.1]} 11.
O-O {[%clk 0:02:42.2]} 11... c6 {[%clk 0:02:13.5]} 12. Rfc1 {[%clk 0:02:15.6]}
12... h6 {[%clk 0:02:13.3]} 13. Qb3 {[%clk 0:02:12.6]} 13... Ne4 {[%clk
0:01:57.9]} 14. Nc4 {[%clk 0:02:08.3]} 14... Nxg3 {[%clk 0:01:49.7]} 15. hxg3
{[%clk 0:02:09.2]} 15... a4 {[%clk 0:01:50.3]} 16. Qd1 {[%clk 0:02:09.2]} 16...
Be7 {[%clk 0:01:50.8]} 17. a3 {[%clk 0:02:07.8]} 17... Nd5 {[%clk 0:01:50.5]}
18. Bd3 {[%clk 0:02:06.6]} 18... Bxd3 {[%clk 0:01:50.7]} 19. Qxd3 {[%clk
0:02:07.5]} 19... Qc7 {[%clk 0:01:46.2]} 20. Rc2 {[%clk 0:01:56.7]} 20... Rfd8
{[%clk 0:01:46.4]} 21. Rac1 {[%clk 0:01:56.2]} 21... Nb6 {[%clk 0:01:46.4]} 22.
Ncd2 {[%clk 0:01:55.8]} 22... Nd7 {[%clk 0:01:45.5]} 23. Qe2 {[%clk 0:01:45.4]}
23... Qb6 {[%clk 0:01:45.8]} 24. g4 {[%clk 0:01:42.7]} 24... Qa6 {[%clk
0:01:45.5]} 25. Qd1 {[%clk 0:01:28.8]} 25... Qb5 {[%clk 0:01:40.2]} 26. Ne4
{[%clk 0:01:25.2]} 26... Nf6 {[%clk 0:01:35.2]} 27. Nc3 {[%clk 0:01:12.6]} 27...
Qa5 {[%clk 0:01:32.6]} 28. Ne5 {[%clk 0:01:12.8]} 28... Bd6 {[%clk 0:01:23.2]}
29. f4 {[%clk 0:00:54.5]} 29... Bxe5 {[%clk 0:00:41.5]} 30. fxe5 {[%clk
0:00:55.4]} 30... Nd5 {[%clk 0:00:42.2]} 31. Qf3 {[%clk 0:00:56.2]} 31... Nxc3
{[%clk 0:00:42.5]} 32. bxc3 {[%clk 0:00:53.6]} 32... Qc7 {[%clk 0:00:41]} 33. c4
{[%clk 0:00:38.4]} 33... c5 {[%clk 0:00:41.5]} 34. Rd1 {[%clk 0:00:33.6]} 34...
Rd7 {[%clk 0:00:38.1]} 35. Qe4 {[%clk 0:00:33.2]} 35... cxd4 {[%clk 0:00:25]}
36. exd4 {[%clk 0:00:32.9]} 36... Rad8 {[%clk 0:00:25.7]} 37. Kh1 {[%clk
0:00:26.5]} 37... Qb6 {[%clk 0:00:25.5]} 38. d5 {[%clk 0:00:21.3]} 38... Qb3
{[%clk 0:00:23.7]} 39. d6 {[%clk 0:00:21.3]} 39... Qxa3 {[%clk 0:00:24.2]} 40.
c5 {[%clk 0:00:20.5]} 40... Rc8 {[%clk 0:00:23.2]} 41. Rb1 {[%clk 0:00:18.5]}
41... Rxc5 {[%clk 0:00:22]} 42. Rxc5 {[%clk 0:00:18.9]} 42... Qxc5 {[%clk
0:00:22.7]} 43. Qxa4 {[%clk 0:00:19.4]} 43... Rd8 {[%clk 0:00:20.5]} 44. Rb5
{[%clk 0:00:16.4]} 44... Qc1+ {[%clk 0:00:19.9]} 45. Kh2 {[%clk 0:00:17.2]}
45... Qg5 {[%clk 0:00:19.3]} 46. Qe4 {[%clk 0:00:13.9]} 46... Rc8 {[%clk
0:00:18.6]} 47. Rb1 {[%clk 0:00:08.3]} 47... b5 {[%clk 0:00:16.8]} 48. Kg1
{[%clk 0:00:06.4]} 48... b4 {[%clk 0:00:12.1]} 49. Rxb4 {[%clk 0:00:06.7]} 49...
Rc1+ {[%clk 0:00:11.4]} 50. Kf2 {[%clk 0:00:06.3]} 50... Qd2+ {[%clk 0:00:11.3]}
51. Kg3 {[%clk 0:00:06.3]} 51... Rc3+ {[%clk 0:00:09.6]} 52. Kh2 {[%clk
0:00:06.6]} 52... Rc8 {[%clk 0:00:08.9]} 53. Rd4 {[%clk 0:00:05]} 53... Qg5
{[%clk 0:00:08.7]} 54. Rd3 {[%clk 0:00:05.8]} 54... Qh4+ {[%clk 0:00:07.9]} 55.
Rh3 {[%clk 0:00:06.6]} 55... Qg5 {[%clk 0:00:08.6]} 56. Rf3 {[%clk 0:00:06.1]}
56... Qh4+ {[%clk 0:00:08.8]} 57. Rh3 {[%clk 0:00:06.8]} 57... Qg5 {[%clk
0:00:09.5]} 58. Qe3 {[%clk 0:00:06.6]} 58... Qxe3 {[%clk 0:00:09.5]} 59. Rxe3
{[%clk 0:00:07.5]} 59... Kf8 {[%clk 0:00:09]} 60. Ra3 {[%clk 0:00:07.5]} 60...
f6 {[%clk 0:00:08.4]} 61. Ra7 {[%clk 0:00:04.7]} 61... fxe5 {[%clk 0:00:06.7]}
62. Re7 {[%clk 0:00:05.3]} 62... Rd8 {[%clk 0:00:07.3]} 63. Rxe6 {[%clk
0:00:05.8]} 63... Kf7 {[%clk 0:00:08]} 64. Rxe5 {[%clk 0:00:05.6]} 64... Rxd6
{[%clk 0:00:08.6]} 65. Kg3 {[%clk 0:00:06.2]} 65... Kf6 {[%clk 0:00:08.9]} 66.
Rf5+ {[%clk 0:00:06.2]} 1/2-1/2